bitfinex-derivatives/quotes_BTCF0:USTF0_20251023
["timestamp","ask_amount","ask_price","bid_price","bid_amount"]
[1761213969898,0.4976503,109550.0,109540.0,0.34421102]
[1761213970103,0.4976503,109550.0,109540.0,0.36876006]
[1761213970304,0.4976503,109550.0,109540.0,0.27748316]
[1761213970807,0.4976503,109550.0,109540.0,0.34421102]
[1761213971395,0.4976503,109550.0,109540.0,0.36875983]
[1761213971600,0.4976503,109550.0,109540.0,0.22022645]
[1761213971795,0.4976503,109550.0,109540.0,0.36875983]
[1761213973007,0.1368503,109550.0,109540.0,0.36875983]
[1761213973405,0.1368503,109550.0,109540.0,0.34421102]
[1761213979703,0.1368503,109550.0,109540.0,0.25293412]
[1761213982820,0.1368503,109550.0,109540.0,0.34421102]
[1761213984126,0.1368503,109550.0,109540.0,0.25293412]
[1761213986030,0.1368503,109550.0,109540.0,0.34421102]
[1761213988629,0.1368503,109550.0,109540.0,0.3931762]
[1761213988831,0.1368503,109550.0,109540.0,0.5417414]
[1761213989432,0.1368503,109550.0,109540.0,0.4504645]
[1761213989730,0.28539959,109550.0,109540.0,0.30191521]
[1761213990230,0.28539959,109550.0,109540.0,0.39319211]
[1761213991233,0.28539959,109550.0,109540.0,0.14443372]
[1761213991534,0.28539959,109550.0,109540.0,0.24401783]
[1761213992332,0.28539959,109550.0,109540.0,0.25330412]
[1761213993233,0.28539959,109550.0,109540.0,0.24401783]
[1761213993935,0.64619959,109550.0,109540.0,0.24401783]
[1761213994230,0.65778959,109550.0,109540.0,0.23036783]
[1761213994436,1.20633888,109550.0,109540.0,0.03728854]
[1761213994734,0.94205808,109550.0,109540.0,0.02913009]
[1761213994937,1.13983404,109550.0,109540.0,0.03474356]
[1761213995231,1.09060737,109550.0,109540.0,0.22004938]
[1761213996135,1.09060737,109550.0,109540.0,0.04693433]
[1761213996837,1.09060737,109550.0,109540.0,0.00456433]
[1761213997530,1.09060737,109550.0,109540.0,0.02574433]
[1761213997928,0.94205808,109550.0,109540.0,0.04693433]
[1761213998128,1.09060737,109550.0,109540.0,0.04693433]
[1761213998526,1.0997404,109550.0,109540.0,0.04693433]
[1761213999139,1.09060737,109550.0,109540.0,0.04693433]
[1761214000042,0.94205808,109550.0,109540.0,0.04693433]
[1761214000234,1.09060737,109550.0,109540.0,0.04693433]
[1761214002141,1.05778959,109550.0,109540.0,0.04693433]
[1761214002541,1.09060737,109550.0,109540.0,0.04693433]
[1761214004343,0.94205808,109550.0,109540.0,0.04693433]
[1761214004533,1.09990413,109550.0,109540.0,0.04693433]
[1761214005342,1.09060737,109550.0,109540.0,0.04693433]
[1761214007339,1.13983404,109550.0,109540.0,0.04693433]
[1761214010845,0.99128475,109550.0,109540.0,0.04693433]
[1761214011047,1.13983404,109550.0,109540.0,0.04693433]
[1761214013943,1.09060737,109550.0,109540.0,0.00456433]
[1761214014146,1.09060737,109550.0,109540.0,0.04976433]
[1761214015645,1.09060737,109550.0,109540.0,0.02758433]
[1761214016247,1.09060737,109550.0,109540.0,0.00456433]
[1761214017646,1.23915666,109550.0,109540.0,0.00456433]
[1761214017848,0.83915666,109550.0,109540.0,0.00456433]
[1761214018049,0.88838333,109550.0,109540.0,0.00456433]
[1761214018644,0.83915666,109550.0,109540.0,0.00456433]
[1761214021048,0.88838333,109550.0,109540.0,0.00456433]
[1761214021348,0.83915666,109550.0,109540.0,0.00456433]
[1761214022044,1.28838333,109550.0,109540.0,0.00456433]
[1761214022252,0.1467752,109530.0,109520.0,0.10248997]
[1761214022451,0.97715558,109530.0,109520.0,0.10248997]
[1761214022656,0.97715558,109530.0,109520.0,0.06976576]
[1761214023136,0.97715558,109530.0,109520.0,0.10248997]
[1761214023736,0.97715558,109530.0,109520.0,0.06976576]
[1761214028548,0.97715558,109530.0,109520.0,0.02456576]
[1761214028749,0.1347736,109520.0,109510.0,0.27402035]
[1761214028952,0.64412289,109520.0,109510.0,0.26499926]
[1761214030145,0.64412289,109520.0,109510.0,0.27507552]
[1761214033443,0.65613289,109520.0,109510.0,0.27507552]
[1761214034146,0.5075836,109520.0,109510.0,0.27507552]
[1761214034346,0.64412289,109520.0,109510.0,0.27507552]
[1761214038260,0.64412289,109520.0,109510.0,0.12652623]
[1761214038556,0.64412289,109520.0,109510.0,0.27507552]
[1761214040155,0.64412289,109520.0,109510.0,0.26599926]
[1761214041049,0.65613289,109520.0,109510.0,0.26599926]
[1761214041557,0.65613289,109520.0,109510.0,0.10348997]
[1761214041856,0.80468218,109520.0,109510.0,0.25203926]
[1761214042056,0.65613289,109520.0,109510.0,0.21931505]
[1761214043155,0.68075829,109520.0,109510.0,0.21931505]
[1761214043459,0.65613289,109520.0,109510.0,0.21931505]
[1761214043755,0.68075829,109520.0,109510.0,0.21931505]
[1761214044157,0.68075829,109520.0,109510.0,0.21831505]
[1761214044353,0.82930758,109520.0,109510.0,0.06976576]
[1761214044654,0.1485303,109500.0,109490.0,0.03272421]
[1761214044856,0.1502486,109490.0,109480.0,0.07859941]
[1761214045054,0.68422663,109490.0,109480.0,8.52e-05]
[1761214045247,0.68431833,109490.0,109480.0,8.52e-05]
[1761214046251,0.68431833,109490.0,109480.0,0.0231652]
[1761214046450,0.68431833,109490.0,109480.0,0.0458752]
[1761214047460,0.66068959,109490.0,109480.0,0.0458752]
[1761214047855,0.66068959,109490.0,109480.0,8.52e-05]
[1761214048064,1.08531833,109490.0,109480.0,8.52e-05]
[1761214048262,1.06068959,109490.0,109480.0,8.52e-05]
[1761214049262,1.06975378,109490.0,109480.0,8.52e-05]
[1761214050164,1.21830307,109490.0,109480.0,8.52e-05]
[1761214050367,1.06975378,109490.0,109480.0,8.52e-05]
[1761214050558,1.06068959,109490.0,109480.0,8.52e-05]
[1761214050758,1.06090092,109490.0,109480.0,0.0231652]
[1761214052068,1.06090092,109490.0,109480.0,8.52e-05]
[1761214053767,0.5121403,109490.0,109480.0,0.0458752]
[1761214054075,0.8331803,109490.0,109480.0,0.19463582]
[1761214054561,0.5121403,109490.0,109480.0,0.60732582]
[1761214055368,0.5131403,109490.0,109480.0,0.60732582]
[1761214055861,0.1153803,109490.0,109480.0,0.69865272]
[1761214056061,0.1163803,109490.0,109480.0,0.69865272]
[1761214056574,0.0934103,109490.0,109480.0,1.38049272]
[1761214056872,0.0020917,109490.0,109480.0,1.41321693]
[1761214057066,0.0913059,109510.0,109500.0,0.1497903]
[1761214057370,0.1365659,109510.0,109500.0,0.61959092]
[1761214057574,0.1365659,109510.0,109500.0,1.01959092]
[1761214057975,0.0913059,109510.0,109500.0,1.16835154]
[1761214058166,0.1142759,109510.0,109500.0,1.38039092]
[1761214058574,0.1365659,109510.0,109500.0,1.38039092]
[1761214058872,0.0923059,109510.0,109500.0,1.38039092]
[1761214059072,0.0923059,109510.0,109500.0,1.52915154]
[1761214059666,0.0923059,109510.0,109500.0,1.56178888]
[1761214060366,0.0913059,109510.0,109500.0,1.56178888]
[1761214060965,0.1142759,109510.0,109500.0,1.56178888]
[1761214061166,0.1142759,109510.0,109500.0,1.52915154]
[1761214061375,0.1142759,109510.0,109500.0,1.53015154]
[1761214062474,0.1142759,109510.0,109500.0,1.38039092]
[1761214062670,0.1365659,109510.0,109500.0,1.38039092]
[1761214064668,0.1142759,109510.0,109500.0,1.38039092]
[1761214066075,0.1365659,109510.0,109500.0,1.38039092]
[1761214067678,0.1365659,109510.0,109500.0,1.38139092]
[1761214068875,0.1502359,109510.0,109500.0,0.51659062]
[1761214069178,0.5110359,109510.0,109500.0,0.36779]
[1761214071084,0.5110359,109510.0,109500.0,0.4591003]
[1761214071774,0.5110359,109510.0,109500.0,0.36779]
[1761214077481,0.5110359,109510.0,109500.0,0.36775]
[1761214083383,0.5110359,109510.0,109500.0,0.49169764]
[1761214083584,0.1365659,109510.0,109500.0,0.65351826]
[1761214086289,0.1129759,109510.0,109500.0,1.17940672]
[1761214086492,0.0913059,109510.0,109500.0,1.57940672]
[1761214086790,0.0913059,109510.0,109500.0,1.17940672]
[1761214091888,0.81134714,109530.0,109520.0,0.05715]
[1761214091889,0.85435714,109530.0,109520.0,0.05715]
[1761214092079,0.15892714,109530.0,109520.0,0.65093196]
[1761214092297,0.1342984,109530.0,109520.0,0.65093196]
[1761214092991,0.1342984,109530.0,109520.0,0.69989714]
[1761214093986,0.15892714,109530.0,109520.0,0.61816422]
[1761214094186,0.53309714,109530.0,109520.0,0.36542]
[1761214094590,0.53309714,109530.0,109520.0,0.37443856]
[1761214095193,0.53309714,109530.0,109520.0,0.52319918]
[1761214095493,0.17229714,109530.0,109520.0,0.62718278]
[1761214096496,0.53309714,109530.0,109520.0,0.62718278]
[1761214096994,0.53309714,109530.0,109520.0,0.53588918]
[1761214097201,0.53309714,109530.0,109520.0,0.37443856]
[1761214097399,0.53309714,109530.0,109520.0,0.20223918]
[1761214097603,0.53309714,109530.0,109520.0,0.37439856]
[1761214098398,0.68185776,109530.0,109520.0,0.05347856]
[1761214099094,0.53309714,109530.0,109520.0,0.05347856]
[1761214103999,0.5084684,109530.0,109520.0,0.05347856]
[1761214104700,0.5084684,109530.0,109520.0,0.07801839]
[1761214106394,0.1342984,109530.0,109520.0,0.27223675]
[1761214106600,0.1342984,109530.0,109520.0,0.36353035]
[1761214110706,0.1342984,109530.0,109520.0,0.51195387]
[1761214112606,0.87327349,109550.0,109540.0,0.01306]
[1761214112607,0.55854556,109550.0,109540.0,0.01306]
[1761214112910,0.5010694,109550.0,109540.0,0.7909026]
[1761214114010,0.1402694,109550.0,109540.0,0.7909026]
[1761214115104,0.1402694,109550.0,109540.0,1.1517026]
[1761214116513,0.02697,109550.0,109540.0,1.55992878]
[1761214116719,0.0048,109550.0,109540.0,1.60889396]
[1761214116921,0.0048,109550.0,109540.0,1.55992878]
[1761214117222,0.049,109550.0,109540.0,1.55992878]
[1761214117414,0.049,109550.0,109540.0,1.58443372]
[1761214117614,0.1402686,109550.0,109540.0,1.58443372]
[1761214118310,0.049,109550.0,109540.0,1.58443372]
[1761214118517,0.0048,109550.0,109540.0,1.55992878]
[1761214120715,0.0960686,109550.0,109540.0,1.55992878]
[1761214121022,0.0048,109550.0,109540.0,1.55992878]
[1761214121424,0.0048,109550.0,109540.0,1.56092878]
[1761214121624,0.0048,109550.0,109540.0,1.60989396]
[1761214122518,0.0048,109550.0,109540.0,1.56092878]
[1761214123120,0.0048,109550.0,109540.0,1.55992878]
[1761214123323,0.0048,109550.0,109540.0,1.56092878]
[1761214123722,0.02697,109550.0,109540.0,1.56092878]
[1761214124020,0.0912664,109560.0,109540.0,1.73380433]
[1761214124219,0.1040726,109610.0,109600.0,0.1280269]
[1761214124420,0.049,109630.0,109600.0,1.12395104]
[1761214124725,0.049,109630.0,109620.0,1.16785444]
[1761214124926,0.461882,109630.0,109620.0,1.07664414]
[1761214125119,0.140202,109630.0,109620.0,0.92805207]
[1761214125427,0.37072,109630.0,109620.0,1.16785444]
[1761214125630,0.861922,109630.0,109620.0,1.07664414]
[1761214127316,0.861922,109630.0,109620.0,1.08552871]
[1761214127927,0.861842,109630.0,109620.0,0.92805207]
[1761214128228,0.861842,109630.0,109620.0,1.08553829]
[1761214128821,0.861842,109630.0,109620.0,0.93694622]
[1761214129627,0.861842,109630.0,109620.0,0.92805207]
[1761214129825,1.01685407,109630.0,109620.0,0.92805207]
[1761214130628,0.868262,109630.0,109620.0,0.92805207]
[1761214131136,0.861842,109630.0,109620.0,0.93695168]
[1761214131432,0.861842,109630.0,109620.0,1.17675405]
[1761214132831,0.861842,109630.0,109620.0,1.08554375]
[1761214133038,0.861842,109630.0,109620.0,0.93695168]
[1761214133431,0.861842,109630.0,109620.0,0.92805207]
[1761214133628,0.861842,109630.0,109620.0,0.93708099]
[1761214133835,0.861842,109630.0,109620.0,0.92805207]
[1761214134531,0.861842,109630.0,109620.0,1.01926237]
[1761214135641,0.861842,109630.0,109620.0,1.16785444]
[1761214137240,0.861842,109630.0,109620.0,1.01926237]
[1761214138343,0.861842,109630.0,109620.0,0.92805207]
[1761214139238,0.861602,109630.0,109620.0,0.92805207]
[1761214140035,1.01019407,109630.0,109620.0,0.92805207]
[1761214141538,1.01019407,109630.0,109620.0,1.01926237]
[1761214141743,1.01019407,109630.0,109620.0,0.92805207]
[1761214143646,1.01011407,109630.0,109620.0,0.92805207]
[1761214143841,1.16512614,109630.0,109620.0,0.7216]
[1761214144045,0.00673,109620.0,109610.0,0.3608]
[1761214144345,1.26687621,109620.0,109610.0,0.3608]
[1761214145231,1.26687621,109620.0,109610.0,0.3618]
[1761214145434,1.28687621,109620.0,109610.0,0.3618]
[1761214145632,1.13828414,109620.0,109610.0,0.3618]
[1761214145839,0.90828414,109620.0,109610.0,0.3608]
[1761214146433,0.88828414,109620.0,109610.0,0.3608]
[1761214146946,0.48928414,109620.0,109610.0,0.3608]
[1761214147348,0.67928414,109620.0,109610.0,0.3608]
[1761214147546,0.68828414,109620.0,109610.0,0.3608]
[1761214147746,0.69028414,109620.0,109610.0,0.3608]
[1761214149050,0.44028414,109620.0,109610.0,0.3608]
[1761214149247,0.44028414,109620.0,109610.0,0.38282]
[1761214149950,0.44028414,109620.0,109610.0,0.3608]
[1761214150546,0.62028414,109620.0,109610.0,0.3608]
[1761214150747,0.87028414,109620.0,109610.0,0.3608]
[1761214150950,1.27028414,109620.0,109610.0,0.3608]
[1761214151148,0.05079,109610.0,109590.0,0.41826]
[1761214151349,0.67576414,109600.0,109590.0,0.41826]
[1761214151544,0.67576414,109600.0,109590.0,0.40432]
[1761214151738,0.92717207,109600.0,109590.0,0.56571207]
[1761214152044,0.91432207,109600.0,109590.0,0.56571207]
[1761214153637,0.91532207,109600.0,109590.0,0.56571207]
[1761214156142,0.91532207,109600.0,109590.0,0.56571207]
[1761214157051,0.51532207,109600.0,109590.0,0.56571207]
[1761214158153,0.66391414,109600.0,109590.0,0.41712]
[1761214159251,0.51532207,109600.0,109590.0,0.41712]
[1761214159643,0.67676414,109600.0,109590.0,0.40432]
[1761214163865,0.66391414,109600.0,109590.0,0.41731]
[1761214164053,0.36673,109600.0,109590.0,0.41731]
[1761214164359,0.51532207,109600.0,109590.0,0.41731]
[1761214168557,0.51532207,109600.0,109590.0,0.56590207]
[1761214169358,0.51524207,109600.0,109590.0,0.56590207]
[1761214170862,0.36665,109600.0,109590.0,0.41731]
[1761214172161,0.39935039,109600.0,109590.0,0.41731]
[1761214174066,0.44819882,109600.0,109590.0,0.41731]
[1761214174468,0.12691882,109600.0,109590.0,0.41731]
[1761214174668,0.44819882,109600.0,109590.0,0.41731]
[1761214175268,0.12691882,109600.0,109590.0,0.41731]
[1761214175468,0.07807039,109600.0,109590.0,0.56575529]
[1761214175668,0.39931039,109600.0,109590.0,0.41731]
[1761214176363,0.07807039,109600.0,109590.0,0.41731]
[1761214176554,0.39935039,109600.0,109590.0,0.96575529]
[1761214177470,0.39935039,109600.0,109590.0,0.81731]
[1761214177764,0.39931039,109600.0,109590.0,0.81731]
[1761214178575,0.07807039,109600.0,109590.0,0.81731]
[1761214178755,0.39931039,109600.0,109590.0,0.81731]
[1761214179371,0.07807039,109600.0,109590.0,0.81731]
[1761214179568,0.39931039,109600.0,109590.0,0.81731]
[1761214179769,0.07807039,109600.0,109590.0,0.81731]
[1761214180067,0.39927039,109600.0,109590.0,0.81731]
[1761214180369,0.07807039,109600.0,109590.0,0.81731]
[1761214180556,0.54771568,109600.0,109590.0,0.81731]
[1761214181165,0.59656411,109600.0,109590.0,0.81731]
[1761214182268,0.59656411,109600.0,109590.0,0.41731]
[1761214182660,0.54771568,109600.0,109590.0,0.41731]
[1761214182864,0.59656411,109600.0,109590.0,0.41731]
[1761214183873,0.12691882,109600.0,109590.0,0.41731]
[1761214184059,0.56386372,109600.0,109590.0,0.41731]
[1761214184265,0.41541843,109600.0,109590.0,0.41731]
[1761214184458,0.41545843,109600.0,109590.0,0.41731]
[1761214185265,0.09421843,109600.0,109590.0,0.41731]
[1761214185471,0.41541843,109600.0,109590.0,0.41731]
[1761214185858,0.09421843,109600.0,109590.0,0.41731]
[1761214186062,0.41541843,109600.0,109590.0,0.41731]
[1761214187570,0.56386372,109600.0,109590.0,0.41731]
[1761214188369,0.56382372,109600.0,109590.0,0.41731]
[1761214188963,0.41537843,109600.0,109590.0,0.41731]
[1761214189170,0.24266372,109600.0,109590.0,0.41731]
[1761214189371,0.39937374,109600.0,109590.0,0.41731]
[1761214192073,0.54781903,109600.0,109590.0,0.41731]
[1761214194168,0.54781903,109600.0,109590.0,0.44185884]
[1761214196276,0.59666746,109600.0,109590.0,0.41731]
[1761214199474,0.56382372,109600.0,109590.0,0.41731]
[1761214205375,0.24266372,109600.0,109590.0,0.41731]
[1761214205578,0.56362372,109600.0,109590.0,0.41731]
[1761214207479,0.41513843,109600.0,109590.0,0.41731]
[1761214209882,0.3991412,109600.0,109590.0,0.41731]
[1761214210083,0.44798963,109600.0,109590.0,0.41731]
[1761214210781,0.59643492,109600.0,109590.0,0.41731]
[1761214211084,0.44798963,109600.0,109590.0,0.41731]
[1761214211479,0.12706963,109600.0,109590.0,0.41731]
[1761214211674,0.44798963,109600.0,109590.0,0.41731]
[1761214211876,0.44794963,109600.0,109590.0,0.41731]
[1761214213389,0.56354372,109600.0,109590.0,0.41731]
[1761214213878,0.00656,109590.0,109580.0,0.4177]
[1761214214181,0.75782678,109590.0,109580.0,0.4049]
[1761214214386,0.75782678,109590.0,109580.0,0.38331]
[1761214215080,0.75882678,109590.0,109580.0,0.38331]
[1761214215281,0.61038149,109590.0,109580.0,0.4049]
[1761214215682,0.3793614,109590.0,109580.0,0.4049]
[1761214216687,0.3300752,109590.0,109580.0,0.4049]
[1761214217282,0.37930548,109590.0,109580.0,0.4049]
[1761214218189,0.5400752,109590.0,109580.0,0.4049]
[1761214218379,0.60587662,109590.0,109580.0,0.4049]
[1761214219188,0.5400752,109590.0,109580.0,0.4049]
[1761214220087,0.5400752,109590.0,109580.0,0.41777]
[1761214221176,0.58928394,109590.0,109580.0,0.41777]
[1761214221984,0.80928394,109590.0,109580.0,0.38331]
[1761214222387,0.80928394,109590.0,109580.0,0.4049]
[1761214222593,0.62928394,109590.0,109580.0,0.4049]
[1761214222793,0.74928394,109590.0,109580.0,0.4049]
[1761214223386,0.89772923,109590.0,109580.0,0.4049]
[1761214224091,0.05074,109580.0,109570.0,0.41739]
[1761214224286,1.08010529,109580.0,109570.0,0.41739]
[1761214224481,1.12928988,109580.0,109570.0,0.41739]
[1761214224694,1.12928988,109580.0,109570.0,0.05659]
[1761214225086,1.13028988,109580.0,109570.0,0.05659]
[1761214225791,0.86355988,109580.0,109570.0,0.05659]
[1761214226396,0.68355988,109580.0,109570.0,0.05659]
[1761214226890,0.68455988,109580.0,109570.0,0.05659]
[1761214228094,0.92455988,109580.0,109570.0,0.05659]
[1761214231194,0.87537529,109580.0,109570.0,0.05659]
[1761214231896,0.92452217,109580.0,109570.0,0.05659]
[1761214232690,1.0731407,109580.0,109570.0,0.05659]
[1761214234093,1.05675715,109580.0,109570.0,0.05659]
[1761214235390,1.10590403,109580.0,109570.0,0.05659]
[1761214236196,1.05675715,109580.0,109570.0,0.05659]
[1761214236397,1.11263403,109580.0,109570.0,0.04379]
[1761214236797,1.0798707,109580.0,109570.0,0.04379]
[1761214236997,1.2998707,109580.0,109570.0,0.04379]
[1761214238689,1.2998707,109580.0,109570.0,0.0568]
[1761214240095,1.2931407,109580.0,109570.0,0.0568]
[1761214240702,1.1031407,109580.0,109570.0,0.0568]
[1761214241400,1.2731407,109580.0,109570.0,0.0568]
[1761214243202,0.7831807,109580.0,109570.0,0.0568]
[1761214243505,0.9431807,109580.0,109570.0,0.0568]
[1761214246614,0.64611688,109580.0,109570.0,0.0568]
[1761214246808,0.9431807,109580.0,109570.0,0.0568]
[1761214248016,0.9581807,109580.0,109570.0,0.0568]
[1761214250014,0.66111688,109580.0,109570.0,0.0568]
[1761214250318,0.90903382,109580.0,109570.0,0.0568]
[1761214251618,0.90903382,109580.0,109560.0,0.36088122]
[1761214251619,0.0517,109570.0,109560.0,0.36088122]
[1761214251813,1.0244693,109570.0,109560.0,8.122e-05]
[1761214252013,0.8744693,109570.0,109560.0,8.122e-05]
[1761214252214,0.87445692,109570.0,109560.0,0.02329122]
[1761214252706,0.80876382,109570.0,109560.0,0.02329122]
[1761214252834,1.27445692,109570.0,109560.0,8.122e-05]
[1761214253015,0.04887,109550.0,109540.0,0.04820433]
[1761214253219,1.07696916,109550.0,109540.0,0.04820433]
[1761214253419,1.02769382,109550.0,109540.0,0.04820433]
[1761214253614,1.076943,109550.0,109540.0,0.04820433]
[1761214253814,0.66689382,109550.0,109540.0,0.04820433]
[1761214254123,1.30689382,109550.0,109540.0,0.04820433]
[1761214254311,1.35611968,109550.0,109540.0,0.02560433]
[1761214254516,1.35611968,109550.0,109540.0,0.04820433]
[1761214254819,1.30789382,109550.0,109540.0,0.04820433]
[1761214255020,1.30789382,109550.0,109540.0,0.21061624]
[1761214255021,0.73253627,109550.0,109540.0,0.21061624]
[1761214255220,0.59487363,109550.0,109540.0,0.97141624]
[1761214255631,0.44634172,109550.0,109540.0,0.97141624]
[1761214255923,0.54668736,109550.0,109540.0,0.97141624]
[1761214256822,0.03480545,109550.0,109540.0,1.11994815]
[1761214257023,0.002,109550.0,109540.0,1.21122485]
[1761214257323,0.08203172,109570.0,109560.0,0.05752]
[1761214257527,0.03280545,109570.0,109560.0,0.92765191]
[1761214257714,0.35388545,109570.0,109560.0,0.92765191]
[1761214257919,0.59395363,109570.0,109560.0,0.92765191]
[1761214258119,0.59395363,109570.0,109560.0,0.77912]
[1761214258730,0.59495363,109570.0,109560.0,0.77912]
[1761214259825,0.59495363,109570.0,109560.0,0.92765191]
[1761214260819,0.22464736,109570.0,109560.0,0.92765191]
[1761214261025,0.52452736,109570.0,109560.0,0.92765191]
[1761214262026,0.54568736,109570.0,109560.0,0.92765191]
[1761214262528,0.37599545,109570.0,109560.0,0.92765191]
[1761214262822,0.0922588,109570.0,109560.0,1.07618382]
[1761214263028,0.03380545,109570.0,109560.0,1.56744382]
[1761214263334,0.32204,109570.0,109560.0,1.5763661]
[1761214263520,0.4132917,109570.0,109560.0,1.5763661]
[1761214263931,0.001,109570.0,109560.0,1.5763661]
[1761214264127,0.4272834,109580.0,109570.0,0.1487717]
[1761214264427,0.4272834,109580.0,109570.0,0.65810361]
[1761214265122,0.4272834,109580.0,109570.0,0.56685191]
[1761214265321,0.1062434,109580.0,109570.0,0.56685191]
[1761214265630,0.4272834,109580.0,109570.0,1.05810361]
[1761214266923,0.4272834,109580.0,109570.0,0.65810361]
[1761214267727,0.1062434,109580.0,109570.0,0.41832]
[1761214267931,0.4272434,109580.0,109570.0,0.56685191]
[1761214268834,0.4272434,109580.0,109570.0,0.65810361]
[1761214272434,0.1062434,109580.0,109570.0,0.65810361]
[1761214274040,0.1062434,109580.0,109570.0,0.56685191]
[1761214274728,0.1273934,109580.0,109570.0,0.56685191]
[1761214275941,0.1062434,109580.0,109570.0,0.56685191]
[1761214276138,0.1062434,109580.0,109570.0,0.41832]
[1761214276343,0.1062434,109580.0,109570.0,0.56685191]
[1761214276737,0.1273934,109580.0,109570.0,0.56685191]
[1761214277135,0.1273934,109580.0,109570.0,0.41832]
[1761214277136,0.44561722,109580.0,109570.0,0.41832]
[1761214277332,0.87842267,109580.0,109570.0,0.41832]
[1761214277533,0.88484267,109580.0,109570.0,0.41832]
[1761214277744,0.87842267,109580.0,109570.0,0.41832]
[1761214279441,0.84561722,109580.0,109570.0,0.41832]
[1761214279838,0.87842267,109580.0,109570.0,0.41832]
[1761214281740,0.84561722,109580.0,109570.0,0.41832]
[1761214282540,0.69708531,109580.0,109570.0,0.41832]
[1761214283346,0.72989076,109580.0,109570.0,0.41832]
[1761214284343,0.69708531,109580.0,109570.0,0.41832]
[1761214285146,0.69708531,109580.0,109570.0,0.56685191]
[1761214285840,1.01800531,109580.0,109570.0,0.56685191]
[1761214286440,1.01800531,109580.0,109570.0,0.41832]
[1761214286646,1.01800531,109580.0,109570.0,0.56685191]
[1761214288744,0.1062434,109580.0,109570.0,0.96685191]
[1761214289039,0.4271634,109580.0,109570.0,0.96685191]
[1761214289246,0.4491534,109580.0,109570.0,0.96685191]
[1761214289841,0.1282334,109580.0,109570.0,0.96685191]
[1761214290047,0.4491534,109580.0,109570.0,0.96685191]
[1761214290247,0.1282334,109580.0,109570.0,0.96685191]
[1761214290848,0.4491534,109580.0,109570.0,0.96685191]
[1761214291257,0.4723934,109580.0,109570.0,0.96685191]
[1761214291757,0.4723934,109580.0,109570.0,0.99144965]
[1761214294448,0.4271634,109580.0,109570.0,0.99144965]
[1761214294650,0.4271634,109580.0,109570.0,0.99138063]
[1761214295360,0.4491534,109580.0,109570.0,0.93416944]
[1761214295561,0.4271634,109580.0,109570.0,1.08263233]
[1761214295863,0.4491534,109580.0,109570.0,0.84291774]
[1761214296160,0.4491534,109580.0,109570.0,0.99138063]
[1761214297059,0.4723934,109580.0,109570.0,0.84291774]
[1761214297261,0.4723934,109580.0,109570.0,0.99138063]
[1761214299265,0.4723934,109580.0,109570.0,1.03498063]
[1761214299566,0.4723934,109580.0,109570.0,0.88651774]
[1761214301169,0.4723934,109580.0,109570.0,1.03498063]
[1761214304178,0.4491534,109580.0,109570.0,0.72623233]
[1761214304477,0.1062434,109580.0,109570.0,1.15900007]
[1761214305682,0.1062434,109580.0,109570.0,1.06774837]
[1761214306883,0.1062434,109580.0,109570.0,1.15900007]
[1761214308373,0.1062434,109580.0,109570.0,1.01053718]
[1761214308573,0.1062434,109580.0,109570.0,1.15900007]
[1761214309376,0.1282334,109580.0,109570.0,1.15900007]
[1761214310484,0.1514734,109580.0,109570.0,1.06774837]
[1761214310783,0.1514734,109580.0,109570.0,0.88651774]
[1761214311386,0.1514734,109580.0,109570.0,0.91928548]
[1761214311786,0.1514734,109580.0,109570.0,1.06774837]
[1761214312281,0.1062434,109580.0,109570.0,1.06774837]
[1761214312488,0.1282334,109580.0,109570.0,1.06774837]
[1761214313583,0.1062434,109580.0,109570.0,1.15900007]
[1761214315290,0.1062434,109580.0,109570.0,1.13440233]
[1761214315786,0.1062434,109580.0,109570.0,1.15895876]
[1761214318088,0.1062434,109580.0,109570.0,1.13440233]
[1761214319682,0.1062434,109580.0,109570.0,1.15896391]
[1761214323591,0.1062434,109580.0,109570.0,1.13440233]
[1761214324193,0.13904885,109580.0,109570.0,1.12619931]
[1761214325389,0.12404085,109590.0,109580.0,0.1477033]
[1761214325693,0.12404085,109590.0,109580.0,0.97780619]
[1761214330198,0.03280545,109600.0,109590.0,0.147695]
[1761214330500,0.03280545,109600.0,109590.0,0.65695789]
[1761214330995,0.03280545,109600.0,109590.0,0.508495]
[1761214331202,0.12404025,109600.0,109590.0,0.65695789]
[1761214334005,0.0912348,109600.0,109590.0,0.65695789]
[1761214334194,0.0912348,109600.0,109590.0,0.68152261]
[1761214337006,0.0912348,109600.0,109590.0,0.8299855]
[1761214338310,0.0912205,109610.0,109600.0,0.1476867]
[1761214338504,0.0912205,109610.0,109600.0,0.97774959]
[1761214338903,0.0912205,109610.0,109600.0,0.88652289]
[1761214339104,0.0912205,109610.0,109600.0,0.97774959]
[1761214339410,0.12402155,109620.0,109610.0,0.05646]
[1761214339411,0.04375,109620.0,109610.0,0.05646]
[1761214339595,0.04375,109620.0,109610.0,0.41726]
[1761214340413,0.04375,109620.0,109610.0,0.56572289]
[1761214341614,0.08135545,109630.0,109620.0,0.05646]
[1761214341908,0.04855,109630.0,109620.0,0.88652289]
[1761214342309,0.04855,109630.0,109620.0,0.74711527]
[1761214342509,0.04855,109630.0,109620.0,0.89557816]
[1761214342713,0.04855,109630.0,109620.0,0.74711527]
[1761214345409,0.59701289,109630.0,109620.0,0.41726]
[1761214345608,0.64252834,109630.0,109620.0,0.41726]
[1761214345814,0.60972289,109630.0,109620.0,0.41726]
[1761214348018,0.93048289,109630.0,109620.0,0.41726]
[1761214348518,0.78202,109630.0,109620.0,0.41726]
[1761214348713,0.93048289,109630.0,109620.0,0.41726]
[1761214349920,0.78202,109630.0,109620.0,0.41726]
[1761214350121,0.93048289,109630.0,109620.0,0.41726]
[1761214352224,0.96328834,109630.0,109620.0,0.41726]
[1761214355233,1.02251461,109630.0,109620.0,0.40405]
[1761214356935,1.02244755,109630.0,109620.0,0.40405]
[1761214360438,0.9896421,109630.0,109620.0,0.56332]
[1761214362237,1.13803793,109630.0,109620.0,0.56332]
[1761214362441,1.15451212,109630.0,109620.0,0.52007]
[1761214362734,1.00611629,109630.0,109620.0,0.52007]
[1761214362929,0.98961624,109630.0,109620.0,0.56567]
[1761214364239,0.94041583,109630.0,109620.0,0.56567]
[1761214368042,0.91770583,109630.0,109620.0,0.57861]
[1761214369239,0.91770583,109630.0,109620.0,0.72700583]
[1761214369946,0.98340629,109630.0,109620.0,0.72700583]
[1761214370146,0.04855,109630.0,109620.0,0.87540166]
[1761214370443,0.41849458,109630.0,109620.0,0.87540166]
[1761214370743,0.41849458,109630.0,109620.0,0.72700583]
[1761214371041,0.56689041,109630.0,109620.0,0.57861]
[1761214371238,0.56689041,109630.0,109620.0,0.72700583]
[1761214374147,0.59971063,109630.0,109620.0,0.72700583]
[1761214375044,0.4513148,109630.0,109620.0,0.72700583]
[1761214375243,0.56689041,109630.0,109620.0,0.72700583]
[1761214381749,0.45131815,109630.0,109620.0,0.72700583]